bitfinex/quotes_ETHUSD_20241018
["timestamp","ask_amount","ask_price","bid_price","bid_amount"]
[1729223198762,0.7856,2622.6,2622.2,3.90350617]
[1729223198962,2.46116959,2622.6,2622.2,0.08992617]
[1729223200442,6.27417959,2622.6,2622.2,0.08992617]
[1729223200795,2.22556959,2622.5,2622.2,0.08992617]
[1729223200996,0.55,2622.5,2622.2,0.08992617]
[1729223201156,0.55,2622.5,2622.0,3.8138]
[1729223201349,0.55,2622.5,2622.3,0.08967189]
[1729223201555,2.22556959,2622.5,2622.1,0.54893696]
[1729223201793,2.22556959,2622.5,2622.4,0.08965725]
[1729223202100,0.55,2622.5,2622.4,0.08965725]
[1729223202245,0.55,2622.5,2622.0,5.48936959]
[1729223202585,0.55,2622.5,2622.1,0.63863813]
[1729223203153,0.55,2622.5,2622.1,4.45236813]
[1729223203353,0.55,2622.5,2622.1,0.63863813]
[1729223204595,4.36316,2622.5,2622.1,0.63863813]
[1729223205692,5.22556959,2622.5,2622.1,0.08970117]
[1729223205873,1.67556959,2622.2,2622.1,0.08970117]
[1729223206073,0.7624,2622.3,2622.1,0.08970117]
[1729223206273,0.7624,2622.3,2621.8,6.20174959]
[1729223206585,0.7624,2622.3,2621.9,0.80437357]
[1729223206788,0.7624,2622.3,2621.9,0.89410891]
[1729223207491,4.57588,2622.3,2621.9,2.5696785]
[1729223207789,0.7624,2622.3,2621.9,2.5696785]
[1729223209399,4.57584,2622.3,2621.9,2.5696785]
[1729223212114,4.57584,2622.3,2621.9,0.89410891]
[1729223218014,0.7624,2622.3,2622.0,1.67556959]
[1729223218221,0.7624,2622.3,2621.9,6.3836685]
[1729223218380,0.7624,2622.3,2622.1,0.08975009]
[1729223218586,0.7624,2622.3,2622.0,1.26084153]
[1729223218782,0.7624,2622.3,2622.2,0.08973545]
[1729223219415,3.55,2622.5,2622.1,3.81372]
[1729223219619,3.55,2622.5,2622.2,0.08977456]
[1729223222011,7.36323,2622.5,2622.2,0.08977456]
[1729223222530,7.36323,2622.5,2622.3,0.08975503]
[1729223222736,7.36323,2622.5,2622.0,1.67556959]
[1729223223027,7.36323,2622.5,2622.1,0.71917163]
[1729223224629,7.36323,2622.5,2622.1,4.53290163]
[1729223224939,7.36323,2622.5,2622.1,0.71917163]
[1729223225241,7.36323,2622.5,2622.1,4.53288163]
[1729223225731,7.36323,2622.5,2622.1,0.71917163]
[1729223227594,7.6274,2622.6,2622.2,0.45329216]
[1729223227935,7.6274,2622.6,2622.3,0.08969633]
[1729223228095,7.6274,2622.6,2622.1,4.44304732]
[1729223228303,3.81329,2622.5,2622.2,0.08971097]
[1729223228522,3.81332,2622.4,2622.2,0.08971097]
[1729223228725,3.81332,2622.4,2621.9,8.43223357]
[1729223228930,3.81332,2622.4,2622.0,1.24875758]
[1729223229133,4.63972,2622.3,2622.0,0.08667431]
[1729223229305,0.8262,2622.0,2621.6,5.32740954]
[1729223229637,0.8262,2622.0,2621.7,0.08674757]
[1729223229805,0.8262,2622.0,2621.7,3.90102757]
[1729223230206,0.8262,2622.0,2621.7,0.08674757]
[1729223231117,0.8262,2622.0,2621.7,1.76231716]
[1729223231316,0.8262,2622.0,2621.7,2.97288826]
[1729223232853,4.57352,2622.2,2621.7,10.60139826]
[1729223233008,4.57352,2622.2,2622.1,1.67556959]
[1729223233009,0.7598,2622.2,2622.1,1.67556959]
[1729223233211,3.8101,2622.5,2622.0,4.52587]
[1729223233553,3.8101,2622.5,2622.1,0.08392902]
[1729223233854,7.62327,2622.5,2622.1,0.08392902]
[1729223235652,9.29883959,2622.5,2622.1,0.08392902]
[1729223236210,3.81333,2622.4,2622.1,0.08392902]
[1729223239640,3.81344,2622.3,2622.1,0.08392902]
[1729223239847,5.48915959,2622.2,2622.1,0.08392902]
[1729223240052,3.81359,2622.2,2622.1,0.08392902]
[1729223240352,3.81359,2622.2,2622.1,0.0839486]
[1729223240537,3.81359,2622.2,2621.8,2.47649913]
[1729223240741,3.81359,2622.2,2621.9,0.08397788]
[1729223241455,0.822,2622.3,2622.0,1.67556959]
[1729223241753,0.822,2622.3,2622.1,0.0839486]
[1729223242053,0.822,2622.3,2621.9,2.47649913]
[1729223242269,0.822,2622.3,2622.2,0.08393396]
[1729223242421,0.822,2622.3,2621.9,2.47649913]
[1729223242761,4.63544,2622.3,2622.0,0.76249406]
[1729223242963,4.63544,2622.3,2622.1,0.0839486]
[1729223243121,0.8103,2622.2,2621.8,5.94937104]
[1729223243427,0.8103,2622.2,2621.9,0.08397788]
[1729223243628,0.8103,2622.2,2621.9,5.57356747]
[1729223243965,0.8103,2622.2,2621.9,3.89799788]
[1729223244122,0.8103,2622.2,2622.0,1.15229385]
[1729223244321,0.8103,2622.2,2622.1,0.0839486]
[1729223248172,0.8103,2622.2,2621.8,4.61508954]
[1729223248673,0.8103,2622.2,2621.8,6.29065913]
[1729223248873,0.8103,2622.2,2621.9,0.08400722]
[1729223249039,0.8103,2622.2,2621.9,0.97407584]
[1729223251238,4.6239,2622.2,2621.9,0.97407584]
[1729223251438,4.6239,2622.2,2621.9,0.08400722]
[1729223252268,0.8103,2622.2,2621.9,0.08400722]
[1729223257052,0.8103,2622.2,2621.9,2.56050635]
[1729223258588,0.8103,2622.2,2621.9,0.88493676]
[1729223261769,0.8103,2622.2,2621.9,0.08400722]
[1729223262803,0.8103,2622.2,2621.9,0.88493676]
[1729223264597,0.8103,2622.2,2621.9,1.84620675]
[1729223264974,0.8103,2622.2,2621.9,5.66022675]
[1729223266204,6.81323,2622.5,2621.9,1.84620675]
[1729223266205,0.7738,2622.4,2621.9,1.84620675]
[1729223266501,4.58711,2622.4,2621.9,5.66019675]
[1729223267409,3.0,2622.5,2622.1,3.81373]
[1729223267706,6.81317,2622.5,2622.0,0.96105866]
[1729223268012,6.81317,2622.5,2622.2,0.08383002]
[1729223268168,6.81317,2622.5,2622.0,0.87719935]
[1729223268169,6.81317,2622.5,2622.1,0.08384466]
[1729223270185,0.8056,2622.4,2622.1,0.08384466]
[1729223270999,0.8056,2622.4,2621.9,7.25166912]
[1729223271214,0.8056,2622.4,2622.0,0.91651634]
[1729223271805,0.8056,2622.4,2622.1,0.08384466]
[1729223273917,4.6189,2622.4,2622.1,0.08384466]
[1729223274115,0.8056,2622.4,2622.1,0.08384466]
[1729223278790,4.61892,2622.4,2622.1,0.08384466]
[1729223281431,0.8056,2622.4,2622.1,0.08384466]
[1729223282220,4.6189,2622.4,2622.1,0.08384466]
[1729223282737,0.8056,2622.4,2622.1,0.08384466]
[1729223282888,6.81316,2622.5,2622.1,3.51331322]
[1729223283088,6.81316,2622.5,2622.2,0.80092954]
[1729223283299,6.81316,2622.5,2622.2,0.8847058]
[1729223283528,6.81316,2622.5,2622.2,0.08377626]
[1729223284730,0.8066,2622.3,2622.2,0.08377626]
[1729223284899,4.62004,2622.3,2622.2,0.08377626]
[1729223285099,6.18093196,2622.3,2621.9,0.80092954]
[1729223285363,5.17004,2622.3,2622.2,0.0836589]
[1729223285829,1.3566,2622.3,2621.9,0.80092954]
[1729223286029,3.81359,2622.2,2621.9,0.80092954]
[1729223289543,1.3566,2622.3,2621.9,0.80092954]
[1729223289853,1.3566,2622.3,2622.0,0.80092954]
[1729223290556,2.7086,2622.3,2622.1,1.67556959]
[1729223290703,2.7086,2622.3,2622.1,0.80092954]
[1729223290704,1.902,2622.3,2622.1,0.80092954]
[1729223294851,1.902,2622.3,2622.2,0.08374691]
[1729223305476,1.902,2622.3,2622.2,2.56024604]
[1729223305680,1.902,2622.3,2622.2,5.5729065]
[1729223305858,1.902,2622.3,2622.2,9.47076791]
[1729223306500,1.902,2622.3,2622.2,6.94477203]
[1729223308366,1.902,2622.3,2622.2,7.7455176]
[1729223313468,1.902,2622.3,2622.2,6.94477203]
[1729223314394,1.902,2622.3,2622.2,8.14616634]
[1729223314562,1.902,2622.3,2622.2,9.46988074]
[1729223317933,1.902,2622.3,2622.2,6.94477203]
[1729223318482,1.902,2622.3,2622.2,7.74496112]
[1729223319408,1.902,2622.3,2622.2,2.25580153]
[1729223319721,1.902,2622.3,2622.2,0.08374691]
[1729223320022,5.71544,2622.3,2622.2,0.08374691]
[1729223321239,1.902,2622.3,2622.2,0.08374691]
[1729223321395,6.26544,2622.3,2622.2,0.08374691]
[1729223322725,7.94100959,2622.3,2622.2,0.08374691]
[1729223322923,9.11644155,2622.3,2622.2,0.08374691]
[1729223323790,12.11644155,2622.3,2622.2,0.08374691]
[1729223324692,12.11644155,2622.3,2621.8,0.80018909]
[1729223324693,3.81374,2622.1,2621.8,0.80018909]
[1729223325496,3.81374,2622.1,2621.7,0.80018909]
[1729223326025,3.81374,2622.1,2621.7,6.29004868]
[1729223326333,3.81374,2622.1,2621.7,7.72042232]
[1729223326536,6.81362,2622.2,2621.7,7.72042232]
[1729223327535,3.0,2622.2,2621.8,5.48964959]
[1729223327836,3.0,2622.2,2621.8,6.36611842]
[1729223328017,3.0,2622.2,2621.9,0.89978864]
[1729223328222,1.902,2622.3,2621.9,4.71374864]
[1729223328605,1.902,2622.3,2621.9,6.46559065]
[1729223328794,1.902,2622.3,2621.9,3.45181974]
[1729223329004,1.902,2622.3,2622.0,3.81381]
[1729223329335,1.902,2622.3,2622.0,5.8421095]
[1729223329723,1.902,2622.3,2622.0,5.04192041]
[1729223331145,1.902,2622.3,2622.0,5.8421095]
[1729223331305,1.902,2622.3,2622.0,5.04192041]
[1729223331948,1.902,2622.3,2622.0,5.8421095]
[1729223332143,1.902,2622.3,2622.1,0.84174677]
[1729223335121,1.902,2622.3,2622.1,4.65547677]
[1729223335603,1.902,2622.3,2622.1,8.46911677]
[1729223335821,1.902,2622.3,2622.1,4.65538677]
[1729223337146,1.902,2622.3,2622.1,5.45557586]
[1729223337306,1.902,2622.3,2622.2,0.71311455]
[1729223340004,1.902,2622.3,2622.2,0.79411633]
[1729223351349,1.902,2622.3,2622.2,0.08100178]
[1729223355176,1.902,2622.3,2622.2,0.08088445]
[1729223355535,1.902,2622.3,2622.1,4.61385909]
[1729223355742,1.902,2622.3,2622.2,0.08087958]
[1729223356169,1.902,2622.3,2622.2,3.89446958]
[1729223356380,1.902,2622.3,2622.2,7.50875752]
[1729223356739,1.902,2622.3,2622.2,7.58502233]
[1729223357064,1.902,2622.3,2622.2,6.70856843]
[1729223359878,1.902,2622.3,2622.2,6.78483153]
[1729223360050,1.902,2622.3,2622.2,9.30995814]
[1729223360255,1.902,2622.3,2622.2,9.23369504]
[1729223360855,1.902,2622.3,2622.2,9.6304379]
[1729223361184,1.902,2622.3,2622.2,8.03230073]
[1729223363182,1.902,2622.3,2622.2,9.23264892]
[1729223363480,1.902,2622.3,2622.2,9.23260948]
[1729223363879,1.902,2622.3,2622.2,9.23261275]
[1729223364288,1.902,2622.3,2622.2,7.90888045]
[1729223372372,1.902,2622.3,2622.2,6.23331086]
[1729223372570,1.902,2622.3,2622.2,5.83312293]
[1729223373785,1.902,2622.3,2622.2,4.69459367]
[1729223373982,1.902,2622.3,2622.2,0.88100367]
[1729223374194,1.902,2622.3,2622.2,0.08087958]
[1729223374661,1.902,2622.3,2622.2,3.89446958]
[1729223375673,1.902,2622.3,2622.2,4.69459367]
[1729223375864,1.902,2622.3,2622.2,3.89446958]
[1729223378505,1.902,2622.3,2622.2,0.08087958]
[1729223379005,3.57756959,2622.3,2622.2,0.08087958]
[1729223380579,8.13009855,2622.3,2622.2,0.08087958]
[1729223380790,7.86665855,2622.3,2621.8,0.80012409]
[1729223380974,1.67556959,2621.9,2621.6,2.00043611]
[1729223381175,1.67556959,2621.9,2621.6,4.61454409]
[1729223381390,1.67556959,2622.0,2621.6,4.61454409]
[1729223381601,1.67556959,2621.9,2621.6,4.61454409]
[1729223382418,1.67556959,2621.7,2621.6,0.80012409]
[1729223382706,1.67556959,2621.8,2621.5,3.81459]
[1729223382905,1.67556959,2621.7,2621.5,3.81459]
[1729223383068,1.67556959,2621.7,2621.4,0.80012409]
[1729223383508,1.67556959,2621.7,2621.3,4.61488409]
[1729223383711,0.799,2621.6,2621.3,6.03762193]
[1729223384507,0.799,2621.6,2621.3,2.22286193]
[1729223384673,0.799,2621.6,2621.4,3.81474]
[1729223385200,0.799,2621.6,2621.5,0.07566598]
[1729223401541,0.799,2621.6,2621.5,0.07596848]
[1729223402234,0.799,2621.6,2621.3,3.8149]
[1729223402429,0.799,2621.6,2621.5,0.07596848]
[1729223402735,0.799,2621.6,2621.4,3.89072313]
[1729223402911,0.799,2621.6,2621.5,0.07596848]
[1729223413919,0.799,2621.6,2621.3,3.81486]
[1729223414119,0.799,2621.6,2621.4,0.07599776]
[1729223414949,2.47456959,2621.6,2621.4,0.07599776]
[1729223415220,0.799,2621.6,2621.4,0.07599776]
[1729223423765,0.799,2621.6,2621.4,3.89074776]
[1729223423972,0.799,2621.6,2621.4,0.07599776]
[1729223424144,1.39640395,2621.6,2621.4,0.07599776]
[1729223424470,1.39640395,2621.6,2621.4,3.89071776]
[1729223424860,1.39640395,2621.6,2621.4,0.07599776]
[1729223426370,1.39640395,2621.6,2621.4,0.87612185]
[1729223427345,1.67556959,2621.5,2621.4,0.87612185]
[1729223427541,6.25836959,2621.5,2621.4,0.07599776]
[1729223427741,1.67556959,2621.5,2621.1,0.80012409]
[1729223427947,4.58295,2621.4,2621.2,0.87359426]
[1729223428294,4.58295,2621.4,2621.2,0.07347017]
[1729223428595,0.458295,2621.3,2621.2,0.07347017]
[1729223428885,2.13386459,2621.3,2621.1,0.80012409]
[1729223429069,2.13386459,2621.3,2621.2,0.07107166]
[1729223429583,2.13386459,2621.3,2621.2,0.07114975]
[1729223429746,2.13386459,2621.3,2621.0,0.80012409]
[1729223429945,1.67556959,2621.2,2621.0,0.80012409]
[1729223430563,1.67556959,2621.2,2620.9,4.61559409]
[1729223431090,1.67556959,2621.1,2620.9,0.80012409]
[1729223431455,2.49716959,2621.1,2620.9,0.80012409]
[1729223435481,2.49716959,2621.1,2620.8,4.61572409]
[1729223437367,1.67556959,2621.0,2620.8,4.61572409]
[1729223437573,0.8216,2621.1,2620.8,4.61572409]
[1729223437574,2.49716959,2621.1,2620.8,4.61572409]
[1729223438078,2.49716959,2621.1,2620.8,0.80012409]
[1729223438079,1.67556959,2621.0,2620.8,0.80012409]
[1729223438399,1.67556959,2621.0,2620.7,3.81574]
[1729223438400,1.67556959,2620.9,2620.7,4.61580409]
[1729223438598,1.67556959,2621.0,2620.7,3.81568]
[1729223440894,1.67556959,2620.9,2620.6,4.61603409]
[1729223441095,1.67556959,2620.9,2620.5,5.72837202]
[1729223441096,1.67556959,2620.7,2620.5,0.80012409]
[1729223441295,1.67556959,2620.7,2620.5,3.81603]
[1729223441503,1.67556959,2620.7,2620.4,4.61632409]
[1729223441672,1.67556959,2620.7,2620.4,3.8162]
[1729223441881,1.67556959,2620.5,2620.3,0.80512409]
[1729223442059,1.67556959,2620.6,2620.3,3.82133]
[1729223442471,2.46356959,2620.5,2620.3,3.82133]
[1729223443205,0.788,2620.5,2620.3,3.82133]
[1729223444804,0.788,2620.5,2620.4,0.0625681]
[1729223447923,2.45046959,2620.7,2620.4,0.0625681]
[1729223448094,1.67556959,2620.6,2620.4,0.0625681]
[1729223453187,1.67556959,2620.5,2620.4,0.0625681]
[1729223453399,9.81802959,2620.5,2620.4,0.0625681]
[1729223453713,8.18711,2620.4,2620.3,0.005]
[1729223454234,8.18711,2620.4,2620.3,0.0639561]
[1729223454395,9.4500881,2620.4,2620.3,0.0639561]
[1729223454593,11.12565769,2620.4,2620.3,0.005]
[1729223455219,12.80122728,2620.4,2620.3,0.005]
[1729223455430,11.12565769,2620.4,2620.3,0.005]
[1729223455600,13.19889639,2620.4,2620.3,0.005]
[1729223456014,7.59805,2620.3,2620.2,0.76922016]
[1729223456313,8.14863,2619.9,2619.8,0.005]
[1729223456493,20.61643,2619.9,2619.8,0.005]
[1729223457301,22.29199959,2619.9,2619.8,0.005]
[1729223457531,20.61643,2619.9,2619.8,0.005]
[1729223457828,21.02525959,2619.9,2619.8,0.005]
[1729223458238,21.21573195,2619.9,2619.8,0.005]
[1729223458732,21.21573195,2619.9,2619.3,1.10356815]
[1729223458733,7.62752,2619.5,2619.3,1.10356815]
[1729223458936,9.85308959,2619.5,2619.3,1.10356815]
[1729223459098,12.74104495,2619.5,2619.3,1.10356815]
[1729223459292,63.64104495,2619.5,2619.3,1.10356815]
[1729223460516,26.29258577,2619.5,2619.3,1.10356815]
[1729223460724,20.98587536,2619.5,2619.3,1.10356815]
[1729223460907,18.08170636,2619.5,2619.3,1.10356815]
[1729223465205,13.16344636,2619.5,2619.3,1.10356815]
[1729223465405,11.06547536,2619.5,2619.3,1.10356815]
[1729223466136,13.36494263,2619.5,2619.3,1.10356815]
[1729223470700,11.68937304,2619.5,2619.3,1.10356815]
[1729223470906,8.99742263,2619.5,2619.3,1.10356815]
[1729223471113,12.81494263,2619.5,2619.3,1.10356815]
[1729223472222,13.36494263,2619.5,2619.3,1.10356815]
[1729223475838,39.56090722,2619.5,2619.3,1.10356815]
[1729223478745,28.88153863,2619.5,2619.3,1.10356815]
[1729223479466,30.55710822,2619.5,2619.3,1.10356815]
[1729223480377,28.88153863,2619.5,2619.3,1.10356815]
[1729223482489,26.60702963,2619.5,2619.3,1.10356815]
[1729223484452,27.20510379,2619.5,2619.3,1.10356815]
[1729223486807,27.19510379,2619.5,2619.3,1.10356815]
[1729223486961,13.96301679,2619.5,2619.3,1.10356815]
[1729223495387,64.86301679,2619.5,2619.3,1.10356815]
[1729223495583,66.53858638,2619.5,2619.3,1.10356815]
[1729223496425,66.54858638,2619.5,2619.3,1.10356815]
[1729223499440,66.54858638,2619.5,2619.3,0.72421659]
[1729223499441,65.73858638,2619.5,2619.3,0.72421659]
[1729223499733,8.13191,2619.3,2618.8,1.1169206]
[1729223499909,62.38304918,2619.3,2618.8,1.1169206]
[1729223505368,23.28837018,2619.3,2618.8,1.1169206]
[1729223506746,19.387231,2619.3,2618.9,0.8229]
[1729223507051,25.18967082,2619.3,2618.9,0.8229]
[1729223507261,13.38434982,2619.3,2618.9,0.8229]
[1729223508214,13.93434982,2619.3,2618.9,0.8229]
[1729223508817,9.82911064,2619.3,2618.9,0.8229]
[1729223509156,13.18024982,2619.3,2618.9,0.8229]
[1729223510761,37.96307182,2619.3,2618.8,1.1169206]
[1729223511660,7.59759,2618.9,2618.8,1.1169206]
[1729223511871,59.04759,2618.9,2618.8,1.1169206]
[1729223512021,59.05759,2618.9,2618.8,1.1169206]
[1729223512227,59.45492065,2618.9,2618.8,1.1169206]
[1729223513120,45.49977824,2618.9,2618.8,1.1169206]
[1729223513460,46.76274975,2618.9,2618.8,1.1169206]
[1729223513635,8.47869216,2618.9,2618.8,1.9070206]
[1729223513837,7.21572065,2618.9,2618.8,1.9070206]
[1729223514031,8.89129024,2618.9,2618.8,1.9070206]
[1729223514441,8.89129024,2618.9,2618.8,1.1169206]
[1729223515264,9.44129024,2618.9,2618.8,1.1169206]
[1729223515622,49.90699624,2618.9,2618.8,1.1169206]
[1729223515862,53.63126839,2618.9,2618.8,1.1169206]
[1729223516672,13.35271005,2618.9,2618.8,1.1169206]
[1729223516822,9.6284379,2618.9,2618.8,1.1169206]
[1729223517023,9.6284379,2618.9,2618.8,1.9445206]
[1729223517024,7.40286831,2618.9,2618.8,1.9445206]
[1729223517222,9.0784379,2618.9,2618.8,1.9445206]
[1729223517457,9.0784379,2618.9,2618.8,1.99855929]
[1729223517672,9.0784379,2618.9,2618.8,1.9445206]
[1729223517839,10.36810669,2618.9,2618.8,1.1169206]
[1729223518228,10.91810669,2618.9,2618.8,1.1169206]
[1729223518825,48.35998069,2618.9,2618.8,1.1169206]
[1729223520147,48.36998069,2618.9,2618.8,1.1169206]
[1729223523302,50.04555028,2618.9,2618.8,0.74386089]
[1729223523621,48.36998069,2618.9,2618.8,0.74386089]
[1729223525820,50.04555028,2618.9,2618.8,0.74386089]
[1729223526530,11.68990669,2618.9,2618.8,0.74386089]
[1729223526834,62.58990669,2618.9,2618.8,0.74386089]
[1729223528131,60.9143371,2618.9,2618.8,0.74386089]
[1729223528339,62.58990669,2618.9,2618.8,0.74386089]
[1729223529697,63.02053881,2618.9,2618.8,8.9e-07]
[1729223530014,8.15828,2618.5,2618.4,3.05e-06]
[1729223530349,7.9679,2618.0,2617.9,1.14362549]
[1729223530499,49.948925,2618.0,2617.9,0.74494208]
[1729223530703,30.318456,2618.0,2617.9,0.74494208]
[1729223531027,30.71589494,2618.0,2617.9,0.74494208]
[1729223531224,32.39146453,2618.0,2617.9,0.74494208]
[1729223531405,36.09149798,2618.0,2617.9,0.74494208]
[1729223532109,35.67853398,2618.0,2617.9,0.74494208]
[1729223533745,34.00296439,2618.0,2617.9,0.74494208]
[1729223534113,35.67853398,2618.0,2617.9,0.74494208]
[1729223534329,35.68853398,2618.0,2617.9,0.74494208]
[1729223535446,37.36410357,2618.0,2617.9,0.74494208]
[1729223536175,35.09033398,2618.0,2617.9,0.74494208]
[1729223538953,35.84904777,2618.0,2617.9,0.74494208]
[1729223539351,34.17347818,2618.0,2617.9,0.74494208]
[1729223539563,7.4050834,2618.0,2617.9,1.53694208]
[1729223539777,9.08065299,2618.0,2617.9,1.53694208]
[1729223539991,9.65142232,2618.0,2617.9,1.53694208]
[1729223540163,9.65142232,2618.0,2617.9,0.74494208]
[1729223540362,27.89127732,2618.0,2617.9,0.74494208]
[1729223540703,31.06236205,2618.0,2617.9,0.74494208]
[1729223540988,31.61236205,2618.0,2617.9,0.74494208]
[1729223541195,10.20142232,2618.0,2617.9,0.74494208]
[1729223544007,9.63065299,2618.0,2617.9,0.74494208]
[1729223547203,10.20142232,2618.0,2617.9,0.74494208]
[1729223547607,10.96462232,2618.0,2617.9,0.74494208]
[1729223550920,10.39385299,2618.0,2617.9,0.74494208]
[1729223551211,11.82566862,2618.0,2617.9,0.74494208]
[1729223551583,11.06246862,2618.0,2617.9,0.74494208]
[1729223552813,11.06246862,2618.0,2617.9,0.74338438]
[1729223552998,9.38689903,2618.0,2617.9,0.74338438]
[1729223553308,11.63323795,2618.0,2617.9,0.74338438]
[1729223553716,9.95766836,2618.0,2617.9,0.74338438]
[1729223553881,11.63323795,2618.0,2617.9,0.74338438]
[1729223554217,7.21713894,2618.0,2617.9,1.50578438]
[1729223554384,8.89270853,2618.0,2617.9,1.50578438]
[1729223554612,8.49526959,2618.0,2617.9,1.55756348]
[1729223557534,32.83509318,2618.0,2617.9,0.74338438]
[1729223557736,38.80941066,2618.0,2617.9,0.50522475]
[1729223558044,38.87949865,2618.0,2617.9,0.50522475]
[1729223558404,42.30072582,2618.0,2617.9,0.50522475]
[1729223559363,8.12163,2617.5,2617.4,1.15697794]
[1729223559510,12.62419899,2617.5,2617.4,1.15697794]
[1729223559706,63.52419899,2617.5,2617.4,1.15697794]
[1729223560810,63.53419899,2617.5,2617.4,1.15697794]
[1729223562907,63.53419899,2617.5,2617.4,7.94e-06]
[1729223563104,4.37102,2617.1,2617.0,1.17033039]
[1729223563306,46.71706034,2617.1,2617.0,1.17033039]
[1729223564657,46.81290762,2617.1,2617.0,1.17033039]
[1729223565230,46.81290762,2617.1,2616.6,0.1284384]
[1729223565231,1.3107,2616.7,2616.6,0.1284384]
[1729223565446,55.01458817,2616.7,2616.6,0.1284384]
[1729223565611,62.45352717,2616.7,2616.6,0.1284384]
[1729223565861,0.01,2616.2,2616.1,1.19703529]
[1729223566054,19.38252417,2616.2,2616.1,1.19703529]
[1729223566345,26.06122517,2616.2,2616.1,1.19703529]
[1729223566909,26.06122517,2616.2,2616.1,3.66e-06]
[1729223566910,31.34552275,2616.2,2616.1,3.66e-06]
[1729223567340,29.82629558,2616.2,2616.1,3.66e-06]
[1729223567562,29.76991697,2616.2,2616.1,3.66e-06]
[1729223567722,24.58072773,2616.2,2616.1,3.66e-06]
[1729223567925,24.08007014,2616.2,2616.1,3.66e-06]
[1729223568114,24.47761309,2616.2,2616.1,3.66e-06]
[1729223569325,27.89884026,2616.2,2616.1,3.66e-06]
[1729223570055,27.89884026,2616.2,2615.6,1.21038774]
[1729223570056,0.7601,2615.7,2615.6,1.21038774]
[1729223570358,63.04826754,2615.7,2615.6,1.21038774]
[1729223570544,64.57701811,2615.7,2615.6,1.21038774]
[1729223570727,6.82365,2615.3,2614.2,1.25044508]
[1729223570925,66.27543354,2615.3,2615.2,0.65965017]
[1729223571127,10.328709,2615.3,2615.2,0.65965017]
[1729223572167,7.37365,2615.3,2615.2,0.65965017]
[1729223572474,3.0,2615.5,2615.2,0.65965017]
[1729223572649,6.82336,2615.5,2615.2,0.65965017]
[1729223573018,6.82336,2615.5,2615.3,0.04002013]
[1729223573019,3.82351,2615.4,2615.3,0.04002013]
[1729223573215,3.0,2615.3,2615.2,0.65965017]
[1729223573655,6.82336,2615.5,2615.2,0.65965017]
[1729223573876,0.55,2615.4,2615.2,0.65965017]
[1729223574214,3.19035002,2615.5,2615.2,0.65965017]
[1729223574215,0.55,2615.5,2615.2,0.65965017]
[1729223574563,3.82303,2615.8,2615.4,0.7653]
[1729223574564,3.82302,2615.8,2615.4,0.7653]
[1729223575520,3.8228,2615.9,2615.4,0.7653]
[1729223575733,3.82297,2615.8,2615.4,0.7653]
[1729223575926,3.55,2615.9,2615.4,0.7653]
[1729223576152,6.82282,2615.9,2615.4,4.58877]
[1729223576315,6.12196295,2616.2,2615.7,0.8209]
[1729223576727,6.12196295,2616.2,2615.7,4.64394]
[1729223577065,6.12196295,2616.2,2615.7,0.8209]
[1729223577066,3.82252,2616.1,2615.7,0.8209]
[1729223577266,3.82263,2616.0,2615.7,0.8209]
[1729223577955,3.82278,2615.9,2615.7,0.8209]
[1729223578331,0.55,2615.9,2615.7,0.8209]
[1729223578930,3.82292,2615.8,2615.7,0.8209]
[1729223579968,7.810043,2615.9,2615.7,0.86085131]
[1729223580141,7.37278,2615.9,2615.7,0.86085131]
[1729223580345,7.77007782,2615.9,2615.7,0.86085131]
[1729223581134,7.79414717,2615.8,2615.7,0.86085131]
[1729223581332,4.37292,2615.8,2615.7,0.03995131]
[1729223581560,4.37336,2615.5,2615.4,0.7873]
[1729223581830,7.37336,2615.5,2615.4,0.7873]
[1729223582276,7.37361,2615.4,2615.2,1.47955017]
[1729223582429,7.37365,2615.3,2615.2,0.65965017]
[1729223582631,8.111011,2615.3,2615.2,0.65965017]
[1729223582834,30.597357,2615.3,2615.2,0.65965017]
[1729223583632,31.365757,2615.3,2615.2,0.65965017]
[1729223583941,24.187131,2615.3,2615.2,0.65965017]
[1729223585276,7.37365,2615.3,2615.2,0.65965017]
[1729223585448,7.01375868,2615.3,2615.2,0.65965017]
[1729223585790,6.82365,2615.3,2615.2,0.65965017]
[1729223586699,7.37365,2615.3,2615.2,0.65965017]
[1729223587144,3.55,2615.3,2615.2,0.65965017]
[1729223587845,7.37365,2615.3,2615.2,0.65965017]
[1729223588982,7.37365,2615.3,2615.2,0.69914637]
[1729223589192,8.51261958,2615.3,2615.2,0.69914637]
[1729223589374,8.51261958,2615.3,2615.2,0.65965017]
[1729223590245,3.55,2615.3,2615.2,0.65965017]
[1729223590639,3.55,2615.3,2615.2,0.69914637]
[1729223591255,7.37365,2615.3,2615.2,0.69914637]
[1729223591547,7.77088455,2615.3,2615.2,0.69914637]
[1729223591960,3.94723455,2615.3,2615.2,0.69914637]
[1729223592657,7.37433,2614.9,2614.7,1.23709263]
[1729223592883,4.37438,2614.8,2614.7,1.23709263]
[1729223593093,0.55,2614.8,2614.7,1.23709263]
[1729223594165,3.0,2615.0,2614.7,2.00689263]
[1729223594681,6.82415,2615.0,2614.7,2.00689263]
[1729223594879,6.82415,2615.0,2614.8,0.03547296]
[1729223594880,3.0,2615.0,2614.8,0.03547296]
[1729223595195,6.82422,2615.0,2614.8,0.03547296]
[1729223595360,3.0,2615.0,2614.8,0.03547296]
[1729223596303,6.82411,2615.0,2614.8,0.03547296]
[1729223596470,3.0,2615.0,2614.8,0.03547296]
[1729223596789,6.82394,2615.2,2614.8,0.03547296]
[1729223596991,3.82413,2615.0,2614.8,0.03547296]
[1729223597169,3.82423,2614.9,2614.8,0.03547296]
[1729223597365,3.0,2615.0,2614.8,0.03547296]
[1729223598098,3.0,2615.2,2614.8,0.03547296]
[1729223598408,3.82373,2615.3,2614.9,0.7776]
[1729223598594,3.82369,2615.3,2615.0,0.03544352]
[1729223600069,0.55,2615.3,2615.0,0.03544352]
[1729223600270,4.3737,2615.3,2615.0,0.03544352]
[1729223600666,0.1948472,2615.6,2615.1,0.8253]
[1729223600918,3.82271,2616.0,2615.3,0.8253]
[1729223601214,3.82291,2615.9,2615.5,0.8253]
[1729223601521,3.82285,2615.9,2615.6,0.03535521]
[1729223601873,3.82248,2616.1,2615.6,0.03535521]
[1729223602270,3.0,2616.1,2615.7,0.8253]
[1729223602491,3.82249,2616.1,2615.7,0.8253]
[1729223602689,3.82249,2616.1,2615.8,0.03532579]